fUSD/lending_fUSD_20240521
["ID","MTS","AMOUNT","RATE_DAILY","PERIOD"]
[327700846,1716327043099,-500.0,0.00030958,6]
[327700847,1716327043108,-500.0,0.00030958,6]
[327700848,1716327043118,-500.0,0.00030958,6]
[327700849,1716327043127,-500.0,0.00030958,6]
[327700850,1716327043137,-500.0,0.00030958,6]
[327700851,1716327043148,-500.0,0.00030958,6]
[327700852,1716327043157,-500.0,0.00030958,6]
[327700853,1716327043167,-681.72,0.00030958,6]
[327700854,1716327043176,-1609.55,0.00030958,6]
[327700855,1716327043186,-500.0,0.00030958,6]
[327700856,1716327043195,-500.0,0.00030958,6]
[327700857,1716327043205,-500.0,0.00030958,6]
[327700858,1716327043215,-500.0,0.00030958,6]
[327700859,1716327043225,-500.0,0.00030958,6]
[327700860,1716327043235,-500.0,0.00030958,6]
[327700861,1716327043247,-500.0,0.00030958,6]
[327700862,1716327043259,-500.0,0.00030958,6]
[327700863,1716327043268,-904.21,0.00030958,6]
[327700864,1716327043277,-500.0,0.00030958,6]
[327700865,1716327043288,-500.0,0.00030958,6]
[327700866,1716327043298,-943.3,0.00030958,6]
[327700867,1716327043307,-500.0,0.00030958,6]
[327700868,1716327043317,-500.0,0.00030958,6]
[327700869,1716327043328,-3293.21,0.00030958,6]
[327700870,1716327043338,-2624.01,0.00030958,6]
[327700871,1716327043348,-620.73,0.00030958,6]
[327700872,1716327043357,-11555.67,0.00030958,6]
[327700873,1716327043367,-500.0,0.00030958,6]
[327700874,1716327043377,-1047.52,0.00030958,6]
[327700875,1716327043386,-500.0,0.00030958,6]
[327700876,1716327043395,-500.0,0.00030958,6]
[327700877,1716327043405,-500.0,0.00030958,6]
[327700878,1716327043415,-2138.33,0.00030958,6]
[327700879,1716327043424,-868.83,0.00030958,6]
[327700880,1716327043435,-1094.02,0.00030958,6]
[327700881,1716327043444,-500.0,0.00030958,6]
[327700882,1716327043453,-2054.93,0.00030958,6]
[327700883,1716327043463,-500.0,0.00030958,6]
[327700885,1716327043472,-2394.75,0.00030958,6]
[327700887,1716327043482,-500.0,0.00030958,6]
[327700888,1716327043491,-500.0,0.00030958,6]
[327700890,1716327043501,-751.07,0.00030958,6]
[327700892,1716327043510,-6659.7,0.00030958,6]
[327700893,1716327043520,-902.89,0.00030958,6]
[327700895,1716327043530,-500.0,0.00030958,6]
[327700896,1716327043539,-644.54,0.00030958,6]
[327700898,1716327043549,-500.0,0.00030958,6]
[327700900,1716327043558,-500.0,0.00030958,6]
[327700902,1716327043568,-500.0,0.00030958,6]
[327700904,1716327043577,-500.0,0.00030958,6]
[327700906,1716327043587,-525.72,0.00030958,6]
[327700908,1716327043596,-500.0,0.00030958,6]
[327700910,1716327043605,-500.0,0.00030958,6]
[327700912,1716327043615,-6145.69,0.00030958,6]
[327700914,1716327043624,-1232.22,0.00030958,6]
[327700916,1716327043633,-730.36,0.00030958,6]
[327700918,1716327043643,-649.99,0.00030958,6]
[327700920,1716327043652,-1034.88,0.00030958,6]
[327700922,1716327043662,-735.26,0.00030958,6]
[327700924,1716327043671,-500.0,0.00030958,6]
[327700926,1716327043681,-500.0,0.00030958,6]
[327700928,1716327043691,-2817.76,0.00030958,6]
[327700930,1716327043701,-500.0,0.00030958,6]
[327700932,1716327043711,-902.3,0.00030958,6]
[327700934,1716327043720,-158.65,0.00030958,6]
[327700936,1716327043729,-665.21,0.00030958,6]
[327700938,1716327043739,-500.0,0.00030958,6]
[327700939,1716327043749,-1010.2,0.00030958,6]
[327700940,1716327043759,-276.60223631,0.00030958,6]
[327700941,1716327043768,-500.0,0.00030958,6]
[327700942,1716327043778,-904.23,0.00030958,6]
[327700943,1716327043787,-748.01,0.00030958,6]
[327700944,1716327043797,-500.0,0.00030958,6]
[327700945,1716327043806,-906.92,0.00030958,6]
[327700946,1716327043815,-1506.06,0.00030958,6]
[327700947,1716327043825,-500.0,0.00030958,6]
[327700948,1716327043834,-648.86,0.00030958,6]
[327700949,1716327043844,-545.03,0.00030958,6]
[327700950,1716327043854,-6304.36,0.00030958,6]
[327700951,1716327043863,-500.0,0.00030958,6]
[327700952,1716327043873,-876.42,0.00030958,6]
[327700953,1716327043882,-723.68,0.00030958,6]
[327700954,1716327043892,-1859.8,0.00030958,6]
[327700955,1716327043901,-967.85,0.00030958,6]
[327700956,1716327043911,-500.0,0.00030958,6]
[327700957,1716327043921,-500.0,0.00030958,6]
[327700958,1716327043931,-500.0,0.00030958,6]
[327700959,1716327043941,-500.22,0.00030958,6]
[327700960,1716327043951,-500.0,0.00030958,6]
[327700961,1716327043961,-500.0,0.00030958,6]
[327700962,1716327043971,-500.0,0.00030958,6]
[327700963,1716327043980,-500.0,0.00030958,6]
[327700964,1716327043990,-720.31,0.00030958,6]
[327700965,1716327043999,-500.0,0.00030958,6]
[327700966,1716327044009,-1081.0,0.00030958,6]
[327700967,1716327044019,-500.0,0.00030958,6]
[327700968,1716327044030,-500.0,0.00030958,6]
[327700969,1716327044040,-1184.78,0.00030958,6]
[327700970,1716327044050,-500.0,0.00030958,6]
[327700971,1716327044060,-987.25,0.00030958,6]
[327700972,1716327044071,-844.48,0.00030958,6]
[327700973,1716327044081,-1374.44,0.00030958,6]
[327700974,1716327044091,-1280.14,0.00030958,6]
[327700975,1716327044100,-500.0,0.00030958,6]
[327700976,1716327044110,-2297.42,0.00030958,6]
[327700977,1716327044120,-759.01,0.00030958,6]
[327700978,1716327044130,-500.0,0.00030958,6]
[327700979,1716327044139,-3505.42,0.00030958,6]
[327700980,1716327044149,-500.0,0.00030958,6]
[327700981,1716327044158,-500.0,0.00030958,6]
[327700982,1716327044168,-500.0,0.00030958,6]
[327700983,1716327044178,-500.0,0.00030958,6]
[327700984,1716327044188,-16030.5,0.00030958,6]
[327700985,1716327044198,-500.0,0.00030958,6]
[327700986,1716327044207,-515.82,0.00030958,6]
[327700987,1716327044216,-1662.15,0.00030958,6]
[327700989,1716327044226,-500.0,0.00030958,6]
[327700991,1716327044235,-622.34,0.00030958,6]
[327700993,1716327044248,-647.67,0.00030958,6]
[327700995,1716327044259,-1728.42,0.00030958,6]
[327700997,1716327044268,-500.0,0.00030958,6]
[327700999,1716327044278,-1018.3,0.00030958,6]
[327701001,1716327044289,-500.0,0.00030958,6]
[327701003,1716327044299,-500.0,0.00030958,6]
[327701005,1716327044308,-500.0,0.00030958,6]
[327701007,1716327044318,-630.94,0.00030958,6]
[327701009,1716327044329,-4277.76,0.00030958,6]
[327701011,1716327044339,-500.0,0.00030958,6]
[327701013,1716327044349,-943.98,0.00030958,6]
[327701015,1716327044358,-500.0,0.00030958,6]
[327701017,1716327044368,-207.56282477,0.00030958,6]
[327701018,1716327044378,-500.0,0.00030958,6]
[327701019,1716327044387,-500.0,0.00030958,6]
[327701020,1716327044397,-500.0,0.00030958,6]
[327701021,1716327044406,-500.0,0.00030958,6]
[327701022,1716327044415,-1621.54,0.00030958,6]
[327701023,1716327044424,-1691.69,0.00030958,6]
[327701024,1716327044434,-500.0,0.00030958,6]
[327701025,1716327044443,-500.0,0.00030958,6]
[327701026,1716327044453,-500.0,0.00030958,6]
[327701027,1716327044462,-500.0,0.00030958,6]
[327701028,1716327044472,-555.88,0.00030958,6]
[327701029,1716327044481,-665.86,0.00030958,6]
[327701030,1716327044491,-500.0,0.00030958,6]
[327701031,1716327044500,-500.0,0.00030958,6]
[327701032,1716327044510,-500.0,0.00030958,6]
[327701033,1716327044519,-500.0,0.00030958,6]
[327701034,1716327044529,-1025.22,0.00030958,6]
[327701035,1716327044539,-500.0,0.00030958,6]
[327701036,1716327044549,-500.0,0.00030958,6]
[327701037,1716327044558,-1494.71,0.00030958,6]
[327701038,1716327044567,-500.0,0.00030958,6]
[327701039,1716327044577,-157.052206,0.00031048,32]
[327701040,1716327044586,-330.0,0.0003106,5]
[327701041,1716327044596,-38231.1643,0.00031132,2]
[327701042,1716327044605,-2030.65553091,0.00031144,2]
[327701043,1716327044615,-157.052206,0.00031148,30]
[327701044,1716327044624,-840.60685,0.0003119,2]
[327701045,1716327044634,-429.25304504,0.00031232,6]
[327701046,1716327044644,-500.0,0.00031232,6]
[327701047,1716327044653,-500.0,0.00031232,6]
[327701048,1716327044662,-500.0,0.00031232,6]
[327701049,1716327044672,-500.0,0.00031232,6]
[327701050,1716327044681,-176.50253316,0.00031232,6]
[327701051,1716327044691,-500.0,0.00031232,6]
[327701052,1716327044702,-500.0,0.00031232,6]
[327701053,1716327044711,-500.0,0.00031232,6]
[327701054,1716327044722,-416.59661105,0.00031232,6]
[327701055,1716327044731,-210.14973424,0.00031232,6]
[327701056,1716327044740,-500.0,0.00031232,6]
[327701057,1716327044749,-416.82591585,0.00031232,6]
[327701058,1716327044802,-583.75164485,0.00031232,6]
[327701059,1716327044811,-859.67,0.00031232,6]
[327701060,1716327044820,-500.0,0.00031232,6]
[327701061,1716327044830,-500.0,0.00031232,6]
[327701062,1716327044839,-500.0,0.00031232,6]
[327701063,1716327044849,-500.0,0.00031232,6]
[327701064,1716327044858,-500.0,0.00031232,6]
[327701065,1716327044867,-500.0,0.00031232,6]
[327701066,1716327044876,-158.93102842,0.00031232,6]
[327701067,1716327044885,-500.0,0.00031232,6]
[327701068,1716327044895,-500.0,0.00031232,6]
[327701069,1716327044904,-639.31,0.00031232,6]
[327701070,1716327044915,-500.0,0.00031232,6]
[327701071,1716327044924,-500.0,0.00031232,6]
[327701072,1716327044935,-500.0,0.00031232,6]
[327701073,1716327044945,-500.0,0.00031232,6]
[327701074,1716327044954,-500.0,0.00031232,6]
[327701075,1716327044965,-500.0,0.00031232,6]
[327701076,1716327044975,-500.0,0.00031232,6]
[327701077,1716327044984,-231.87584371,0.00031232,6]
[327701078,1716327044993,-500.0,0.00031232,6]
[327701079,1716327045003,-500.0,0.00031232,6]
[327701080,1716327045013,-500.0,0.00031232,6]
[327701081,1716327045023,-500.0,0.00031232,6]
[327701082,1716327045033,-500.0,0.00031232,6]
[327701083,1716327045042,-308.79601325,0.00031232,6]
[327701084,1716327045052,-500.0,0.00031232,6]
[327701085,1716327045061,-500.0,0.00031232,6]
[327701086,1716327045071,-500.0,0.00031232,6]
[327701087,1716327045080,-500.0,0.00031232,6]
[327701088,1716327045089,-500.0,0.00031232,6]
[327701089,1716327045098,-500.0,0.00031232,6]
[327701090,1716327045107,-500.0,0.00031232,6]
[327701091,1716327045117,-500.0,0.00031232,6]
[327701092,1716327045126,-500.0,0.00031232,6]
[327701093,1716327045136,-500.0,0.00031232,6]
[327701094,1716327045145,-500.0,0.00031232,6]
[327701095,1716327045154,-182.6163919,0.00031232,6]
[327701096,1716327045163,-500.0,0.00031232,6]
[327701097,1716327045173,-500.0,0.00031232,6]
[327701098,1716327045182,-500.0,0.00031232,6]
[327701099,1716327045192,-500.0,0.00031232,6]
[327701100,1716327045202,-500.0,0.00031232,6]
[327701101,1716327045211,-500.0,0.00031232,6]
[327701102,1716327045221,-500.0,0.00031232,6]
[327701103,1716327045230,-500.0,0.00031232,6]
[327701104,1716327045243,-500.0,0.00031232,6]
[327701105,1716327045258,-500.0,0.00031232,6]
[327701106,1716327045268,-508.88,0.00031232,6]
[327701107,1716327045277,-500.0,0.00031232,6]
[327701108,1716327045286,-500.0,0.00031232,6]
[327701109,1716327045298,-500.0,0.00031232,6]
[327701110,1716327045308,-500.0,0.00031232,6]
[327701111,1716327045317,-500.0,0.00031232,6]
[327701112,1716327045328,-500.0,0.00031232,6]
[327701113,1716327045337,-500.0,0.00031232,6]
[327701114,1716327045347,-500.0,0.00031232,6]
[327701115,1716327045358,-440.6,0.00031232,6]
[327701116,1716327045367,-564.23,0.00031232,6]
[327701117,1716327045377,-521.74,0.00031232,6]
[327701118,1716327045387,-500.0,0.00031232,6]
[327701119,1716327045396,-500.0,0.00031232,6]
[327701120,1716327045406,-500.0,0.00031232,6]
[327701121,1716327045415,-500.0,0.00031232,6]
[327701122,1716327045425,-500.0,0.00031232,6]
[327701123,1716327045434,-500.0,0.00031232,6]
[327701124,1716327045443,-500.0,0.00031232,6]
[327701125,1716327045452,-681.72,0.00031232,6]
[327701126,1716327045462,-1609.55,0.00031232,6]
[327701127,1716327045471,-455.73200949,0.00031232,6]
[327701128,1716327045481,-500.0,0.00031232,6]
[327701129,1716327045490,-500.0,0.00031232,6]
[327701130,1716327045500,-500.0,0.00031232,6]
[327701131,1716327045510,-500.0,0.00031232,6]
[327701132,1716327045519,-500.0,0.00031232,6]
[327701133,1716327045529,-500.0,0.00031232,6]
[327701134,1716327045538,-500.0,0.00031232,6]
[327701135,1716327045548,-904.21,0.00031232,6]
[327701136,1716327045557,-500.0,0.00031232,6]
[327701137,1716327045568,-500.0,0.00031232,6]
[327701138,1716327045577,-943.3,0.00031232,6]
[327701139,1716327045587,-500.0,0.00031232,6]
[327701140,1716327045596,-500.0,0.00031232,6]
[327701141,1716327045606,-3293.21,0.00031232,6]
[327701142,1716327045615,-2624.01,0.00031232,6]
[327701143,1716327045626,-620.73,0.00031232,6]
[327701144,1716327045636,-11555.67,0.00031232,6]
[327701145,1716327045646,-500.0,0.00031232,6]
[327701146,1716327045655,-1047.52,0.00031232,6]
[327701147,1716327045665,-500.0,0.00031232,6]
[327701148,1716327045674,-500.0,0.00031232,6]
[327701149,1716327045683,-500.0,0.00031232,6]
[327701150,1716327045693,-2138.33,0.00031232,6]
[327701151,1716327045703,-868.83,0.00031232,6]
[327701152,1716327045712,-1094.02,0.00031232,6]
[327701153,1716327045722,-500.0,0.00031232,6]
[327701154,1716327045732,-2054.93,0.00031232,6]
[327701155,1716327045742,-500.0,0.00031232,6]
[327701156,1716327045751,-2394.75,0.00031232,6]
[327701157,1716327045761,-500.0,0.00031232,6]
[327701158,1716327045771,-500.0,0.00031232,6]
[327701159,1716327045780,-751.07,0.00031232,6]
[327701160,1716327045790,-6659.7,0.00031232,6]
[327701161,1716327045799,-902.89,0.00031232,6]
[327701162,1716327045810,-500.0,0.00031232,6]
[327701163,1716327045820,-644.54,0.00031232,6]
[327701164,1716327045831,-500.0,0.00031232,6]
[327701165,1716327045840,-500.0,0.00031232,6]
[327701166,1716327045850,-500.0,0.00031232,6]
[327701167,1716327045859,-500.0,0.00031232,6]
[327701168,1716327045870,-525.72,0.00031232,6]
[327701169,1716327045881,-500.0,0.00031232,6]
[327701170,1716327045890,-500.0,0.00031232,6]
[327701171,1716327045900,-6145.69,0.00031232,6]
[327701172,1716327045909,-1232.22,0.00031232,6]
[327701173,1716327045919,-649.99,0.00031232,6]
[327701174,1716327045928,-730.36,0.00031232,6]
[327701175,1716327045939,-1034.88,0.00031232,6]
[327701176,1716327045948,-735.26,0.00031232,6]
[327701177,1716327045958,-500.0,0.00031232,6]
[327701178,1716327045967,-500.0,0.00031232,6]
[327701179,1716327045977,-2817.76,0.00031232,6]
[327701180,1716327045986,-500.0,0.00031232,6]
[327701181,1716327045995,-902.3,0.00031232,6]
[327701182,1716327046004,-665.21,0.00031232,6]
[327701183,1716327046013,-500.0,0.00031232,6]
[327701184,1716327046023,-1010.2,0.00031232,6]
[327701185,1716327046032,-500.0,0.00031232,6]
[327701186,1716327046041,-904.23,0.00031232,6]
[327701187,1716327046051,-748.01,0.00031232,6]
[327701188,1716327046061,-500.0,0.00031232,6]
[327701189,1716327046070,-906.92,0.00031232,6]
[327701190,1716327046079,-1506.06,0.00031232,6]
[327701191,1716327046089,-500.0,0.00031232,6]
[327701192,1716327046098,-545.03,0.00031232,6]
[327701193,1716327046108,-6304.36,0.00031232,6]
[327701194,1716327046117,-500.0,0.00031232,6]
[327701195,1716327046126,-876.42,0.00031232,6]
[327701196,1716327046136,-723.68,0.00031232,6]
[327701197,1716327046145,-1859.8,0.00031232,6]
[327701198,1716327046155,-967.85,0.00031232,6]
[327701199,1716327046165,-500.0,0.00031232,6]
[327701200,1716327046174,-500.0,0.00031232,6]
[327701201,1716327046183,-500.0,0.00031232,6]
[327701202,1716327046193,-500.22,0.00031232,6]
[327701203,1716327046203,-500.0,0.00031232,6]
[327701204,1716327046212,-500.0,0.00031232,6]
[327701205,1716327046221,-500.0,0.00031232,6]
[327701206,1716327046230,-500.0,0.00031232,6]
[327701207,1716327046239,-720.31,0.00031232,6]
[327701208,1716327046252,-500.0,0.00031232,6]
[327701209,1716327046261,-1081.0,0.00031232,6]
[327701210,1716327046270,-500.0,0.00031232,6]
[327701211,1716327046280,-500.0,0.00031232,6]
[327701212,1716327046290,-1184.78,0.00031232,6]
[327701213,1716327046299,-500.0,0.00031232,6]
[327701214,1716327046309,-987.25,0.00031232,6]
[327701215,1716327046319,-844.48,0.00031232,6]
[327701216,1716327046330,-1374.44,0.00031232,6]
[327701217,1716327046340,-1280.14,0.00031232,6]
[327701218,1716327046349,-166.56740843,0.00031232,6]
[327701220,1716327046359,-2297.42,0.00031232,6]
[327701221,1716327046368,-759.01,0.00031232,6]
[327701222,1716327046377,-500.0,0.00031232,6]
[327701223,1716327046387,-3505.42,0.00031232,6]
[327701224,1716327046396,-500.0,0.00031232,6]
[327701225,1716327046405,-500.0,0.00031232,6]
[327701226,1716327046414,-500.0,0.00031232,6]
[327701227,1716327046424,-500.0,0.00031232,6]
[327701228,1716327046434,-16030.5,0.00031232,6]
[327701230,1716327046443,-500.0,0.00031232,6]
[327701231,1716327046452,-515.82,0.00031232,6]
[327701233,1716327046462,-1662.15,0.00031232,6]
[327701234,1716327046471,-500.0,0.00031232,6]
[327701235,1716327046481,-622.34,0.00031232,6]
[327701236,1716327046490,-647.67,0.00031232,6]
[327701237,1716327046499,-1728.42,0.00031232,6]
[327701238,1716327046509,-500.0,0.00031232,6]
[327701239,1716327046518,-1018.3,0.00031232,6]
[327701240,1716327046528,-500.0,0.00031232,6]
[327701241,1716327046539,-437.11443759,0.00031232,6]
[327701242,1716327046549,-500.0,0.00031232,6]
[327701243,1716327046559,-630.94,0.00031232,6]
[327701244,1716327046569,-4277.76,0.00031232,6]
[327701245,1716327046578,-500.0,0.00031232,6]
[327701246,1716327046588,-943.98,0.00031232,6]
[327701247,1716327046597,-500.0,0.00031232,6]
[327701248,1716327046613,-500.0,0.00031232,6]
[327701249,1716327046622,-500.0,0.00031232,6]
[327701250,1716327046632,-500.0,0.00031232,6]
[327701251,1716327046641,-500.0,0.00031232,6]
[327701252,1716327046650,-1621.54,0.00031232,6]
[327701253,1716327046659,-1691.69,0.00031232,6]
[327701254,1716327046668,-258.52882833,0.00031232,6]
[327701255,1716327046677,-500.0,0.00031232,6]
[327701256,1716327046686,-500.0,0.00031232,6]
[327701257,1716327046695,-597.57682295,0.00031232,6]
[327701258,1716327046704,-555.88,0.00031232,6]
[327701259,1716327046713,-665.86,0.00031232,6]
[327701260,1716327046724,-500.0,0.00031232,6]
[327701261,1716327046736,-500.0,0.00031232,6]
[327701262,1716327046745,-500.0,0.00031232,6]
[327701263,1716327046755,-500.0,0.00031232,6]
[327701264,1716327046764,-500.0,0.00031232,6]
[327701265,1716327046773,-1025.22,0.00031232,6]
[327701266,1716327046782,-349.47,0.00031232,6]
[327701267,1716327046791,-1494.71,0.00031232,6]
[327701268,1716327046802,-500.0,0.00031232,6]
[327701269,1716327046812,-225.90491124,0.00031248,3]
[327701270,1716327046824,-157.052206,0.00031248,30]
[327701271,1716327046833,-4274.58189899,0.00031271,2]
[327701272,1716327046842,-500.0,0.00031292,2]
[327701273,1716327046851,-503.05,0.0003133,2]
[327701274,1716327046862,-157.052206,0.00031348,30]
[327701275,1716327046872,-1565.66581161,0.00031355,2]
[327701276,1716327046883,-150.0,0.00031405,2]
[327701277,1716327046892,-439.0,0.00031405,2]
[327701278,1716327046902,-164.0,0.00031405,2]
[327701279,1716327046911,-445.0,0.00031405,2]
[327701280,1716327046920,-809.0,0.00031405,2]
[327701281,1716327046930,-383.075,0.00031405,2]
[327701282,1716327046939,-1648.0,0.00031405,2]
[327701283,1716327046948,-215.0,0.00031405,2]
[327701284,1716327046957,-150.0,0.00031405,2]
[327701285,1716327046966,-1137.0,0.00031405,2]
[327701286,1716327046976,-3155.0,0.00031405,2]
[327701287,1716327046985,-1061.0,0.00031405,2]
[327701288,1716327046994,-282.075,0.00031405,2]
[327701289,1716327047004,-5132.0,0.00031405,2]
[327701290,1716327047012,-1093.656,0.00031405,2]
[327701291,1716327047021,-974.0,0.00031405,2]
[327701292,1716327047031,-1465.0,0.00031405,2]
[327701293,1716327047042,-252.29285456,0.00031406,2]
[327701294,1716327047051,-603.0143,0.00031406,2]
[327701295,1716327047060,-157.052206,0.00031448,30]
[327701296,1716327047070,-160.0,0.000315,4]
[327701297,1716327047079,-150.0,0.000315,7]
[327701298,1716327047088,-500.0,0.00031506,6]
[327701299,1716327047097,-500.0,0.00031506,6]
[327701300,1716327047107,-500.0,0.00031506,6]
[327701301,1716327047116,-310.4062985,0.00031506,6]
[327701302,1716327047125,-500.0,0.00031506,6]
[327701303,1716327047134,-500.0,0.00031506,6]
[327701304,1716327047143,-500.0,0.00031506,6]
[327701305,1716327047153,-500.0,0.00031506,6]
[327701306,1716327047162,-859.67,0.00031506,6]
[327701307,1716327047171,-500.0,0.00031506,6]
[327701308,1716327047180,-500.0,0.00031506,6]
[327701309,1716327047190,-500.0,0.00031506,6]
[327701310,1716327047199,-500.0,0.00031506,6]
[327701311,1716327047208,-500.0,0.00031506,6]
[327701312,1716327047217,-500.0,0.00031506,6]
[327701313,1716327047226,-500.0,0.00031506,6]
[327701314,1716327047235,-639.31,0.00031506,6]
[327701315,1716327047244,-500.0,0.00031506,6]
[327701316,1716327047258,-500.0,0.00031506,6]
[327701317,1716327047267,-500.0,0.00031506,6]
[327701318,1716327047277,-500.0,0.00031506,6]
[327701319,1716327047287,-500.0,0.00031506,6]
[327701320,1716327047296,-500.0,0.00031506,6]
[327701321,1716327047306,-500.0,0.00031506,6]
[327701322,1716327047315,-500.0,0.00031506,6]
[327701323,1716327047324,-500.0,0.00031506,6]
[327701324,1716327047337,-500.0,0.00031506,6]
[327701325,1716327047346,-500.0,0.00031506,6]
[327701326,1716327047356,-500.0,0.00031506,6]
[327701327,1716327047365,-500.0,0.00031506,6]
[327701328,1716327047374,-500.0,0.00031506,6]
[327701329,1716327047384,-500.0,0.00031506,6]
[327701330,1716327047393,-500.0,0.00031506,6]
[327701331,1716327047402,-500.0,0.00031506,6]
[327701332,1716327047412,-500.0,0.00031506,6]
[327701333,1716327047421,-500.0,0.00031506,6]
[327701334,1716327047431,-500.0,0.00031506,6]
[327701335,1716327047440,-500.0,0.00031506,6]
[327701336,1716327047450,-500.0,0.00031506,6]
[327701337,1716327047459,-500.0,0.00031506,6]
[327701338,1716327047468,-500.0,0.00031506,6]
[327701339,1716327047478,-500.0,0.00031506,6]
[327701340,1716327047487,-500.0,0.00031506,6]
[327701341,1716327047497,-500.0,0.00031506,6]
[327701342,1716327047506,-500.0,0.00031506,6]
[327701343,1716327047515,-500.0,0.00031506,6]
[327701344,1716327047524,-500.0,0.00031506,6]
[327701345,1716327047534,-500.0,0.00031506,6]
[327701346,1716327047543,-500.0,0.00031506,6]
[327701347,1716327047552,-500.0,0.00031506,6]
[327701348,1716327047561,-508.88,0.00031506,6]
[327701349,1716327047570,-500.0,0.00031506,6]
[327701350,1716327047579,-500.0,0.00031506,6]
[327701351,1716327047589,-500.0,0.00031506,6]
[327701352,1716327047598,-500.0,0.00031506,6]
[327701353,1716327047607,-500.0,0.00031506,6]
[327701354,1716327047616,-500.0,0.00031506,6]
[327701355,1716327047626,-500.0,0.00031506,6]
[327701356,1716327047635,-500.0,0.00031506,6]
[327701357,1716327047644,-521.74,0.00031506,6]
[327701358,1716327047654,-500.0,0.00031506,6]
[327701359,1716327047663,-500.0,0.00031506,6]
[327701360,1716327047672,-500.0,0.00031506,6]
[327701361,1716327047682,-500.0,0.00031506,6]
[327701362,1716327047691,-500.0,0.00031506,6]
[327701363,1716327047700,-500.0,0.00031506,6]
[327701364,1716327047709,-500.0,0.00031506,6]
[327701365,1716327047718,-681.72,0.00031506,6]
[327701366,1716327047727,-1609.55,0.00031506,6]
[327701367,1716327047736,-500.0,0.00031506,6]
[327701368,1716327047746,-500.0,0.00031506,6]
[327701369,1716327047755,-609.84655075,0.00031506,6]
[327701370,1716327047763,-500.0,0.00031506,6]
[327701371,1716327047774,-500.0,0.00031506,6]
[327701372,1716327047783,-500.0,0.00031506,6]
[327701373,1716327047793,-904.21,0.00031506,6]
[327701374,1716327047804,-500.0,0.00031506,6]
[327701375,1716327047813,-500.0,0.00031506,6]
[327701376,1716327047822,-500.0,0.00031506,6]
[327701377,1716327047832,-943.3,0.00031506,6]
[327701378,1716327047842,-500.0,0.00031506,6]
[327701379,1716327047852,-500.0,0.00031506,6]
[327701380,1716327047863,-3293.21,0.00031506,6]
[327701381,1716327047874,-2624.01,0.00031506,6]
[327701382,1716327047883,-620.73,0.00031506,6]
[327701383,1716327047892,-11555.67,0.00031506,6]
[327701384,1716327047902,-500.0,0.00031506,6]
[327701385,1716327047912,-1047.52,0.00031506,6]
[327701386,1716327047922,-500.0,0.00031506,6]
[327701387,1716327047933,-500.0,0.00031506,6]
[327701388,1716327047943,-500.0,0.00031506,6]
[327701389,1716327047953,-2138.33,0.00031506,6]